Workbook

Sheet Начало
B1: Относно шаблона
B2: Използвайте този шаблон, за да създадете полумесечен домашен бюджет.
B3: Работният лист на таблото съдържа диаграми за ежемесечни и годишни общи суми и таблица за приходи и разходи за две седмици.
B4: Въведете категории в работния лист "Списъци с данни" и стойностите в работния лист "Приходи и разходи".
B5: Обновявете обобщената таблица в работния лист "Отчет за бюджета".
B6: Забележка:
B7: Предоставени са допълнителни инструкции в колона A във всички работни листове. Този текст е скрит нарочно. За да премахнете текста, изберете колона А, след което изберете DELETE.
B8: За да научите повече за таблиците, натиснете SHIFT и след това F10 в таблица, изберете опцията ТАБЛИЦА, след което изберете АЛТЕРНАТИВЕН ТЕКСТ. За обобщените таблици натиснете SHIFT и след това F10 в таблица, изберете ОПЦИИ ЗА ОБОБЩЕНА ТАБЛИЦА, след което изберете раздела АЛТЕРНАТИВЕН ТЕКСТ.

Sheet Табло
A1: Създаване на табло за месечни и годишни общи суми и приходи и разходи за две седмици в този работен лист. Полезни инструкции как да използвате този работен лист, можете да намерите в клетките в тази колона. Заглавието на тази работна книга е в клетката вдясно, а заглавието на работния лист е в клетка O1. | B1: Полумесечен домашен бюджет | O1: ТАБЛО
A2: Изберете плъзгача в клетка C2, за да промените месеца в клетката отдясно, а за да промените годината в клетка I2, изберете плъзгача в клетка J2. | B2: =CHOOSE(НомерМесец,"ЯНУАРИ","ФЕВРУАРИ","МАРТ","АПРИЛ","МАЙ","ЮНИ","ЮЛИ","АВГУСТ","СЕПТЕМВРИ","ОКТОМВРИ","НОЕМВРИ","ДЕКЕМВРИ") -> ДЕКЕМВРИ | C2: 12 | I2: 2022
A3: Етикетът "Общи суми за месеца" е в клетка вдясно, а етикет "Годишни общи суми" в клетка I3. | B3: ОБЩИ СУМИ ЗА МЕСЕЦА | I3: ГОДИШНИ ОБЩИ СУМИ
A4: Линейна диаграма, която сравнява общите суми за месечните приходи с общите суми за месечните разходи, е в клетка C4, а диаграмата, сравняваща общите суми за годишните приходи с годишните разходи, е в клетка J4. Следващата инструкция е в клетка A8. | B4: ПРИХОД | D4: =ОбщоМесечниРазходи -> 0 лв. | I4: ПРИХОД | L4: =ОбщоГодишниРазходи -> 10,742 лв.
B5: РАЗНОСКИ | D5: =ОбщоМесечниПриходи -> 0 лв. | I5: РАЗНОСКИ | L5: =Годишни_Междинни_суми -> 13,200 лв.
A8: Таблицата на таблото, която започва от клетката вдясно, се актуализира автоматично. | B8: Категория | C8: ЯНУАРИ | D8: ФЕВРУАРИ | E8: МАРТ | F8: АПРИЛ | G8: МАЙ | H8: ЮНИ | I8: ЮЛИ | J8: АВГУСТ | K8: СЕПТЕМВРИ | L8: ОКТОМВРИ | M8: НОЕМВРИ | N8: ДЕКЕМВРИ | O8: Блещукаща линия
B9: Приходи 1-15 | C9: =SUMIFS(Приход[СУМА],Приход[ДАТА],"<="&ДатаСреда,Приход[ДАТА],">="&ДатаНачало) -> 0.00 лв. | D9: =SUMIFS(Приход[СУМА],Приход[ДАТА],"<="&ДатаСреда,Приход[ДАТА],">="&ДатаНачало) -> 0.00 лв. | E9: =SUMIFS(Приход[СУМА],Приход[ДАТА],"<="&ДатаСреда,Приход[ДАТА],">="&ДатаНачало) -> 1,300.00 лв. | F9: =SUMIFS(Приход[СУМА],Приход[ДАТА],"<="&ДатаСреда,Приход[ДАТА],">="&ДатаНачало) -> 5,700.00 лв. | G9: =SUMIFS(Приход[СУМА],Приход[ДАТА],"<="&ДатаСреда,Приход[ДАТА],">="&ДатаНачало) -> 500.00 лв. | H9: =SUMIFS(Приход[СУМА],Приход[ДАТА],"<="&ДатаСреда,Приход[ДАТА],">="&ДатаНачало) -> 0.00 лв. | I9: =SUMIFS(Приход[СУМА],Приход[ДАТА],"<="&ДатаСреда,Приход[ДАТА],">="&ДатаНачало) -> 0.00 лв. | J9: =SUMIFS(Приход[СУМА],Приход[ДАТА],"<="&ДатаСреда,Приход[ДАТА],">="&ДатаНачало) -> 0.00 лв. | K9: =SUMIFS(Приход[СУМА],Приход[ДАТА],"<="&ДатаСреда,Приход[ДАТА],">="&ДатаНачало) -> 0.00 лв. | L9: =SUMIFS(Приход[СУМА],Приход[ДАТА],"<="&ДатаСреда,Приход[ДАТА],">="&ДатаНачало) -> 0.00 лв. | M9: =SUMIFS(Приход[СУМА],Приход[ДАТА],"<="&ДатаСреда,Приход[ДАТА],">="&ДатаНачало) -> 0.00 лв. | N9: =SUMIFS(Приход[СУМА],Приход[ДАТА],"<="&ДатаСреда,Приход[ДАТА],">="&ДатаНачало) -> 0.00 лв.
B10: Приходи от 16 до края на месеца | C10: =SUMIFS(Приход[СУМА],Приход[ДАТА],"<="&ДатаКрай,Приход[ДАТА],">="&ДатаСреда+1) -> 0.00 лв. | D10: =SUMIFS(Приход[СУМА],Приход[ДАТА],"<="&ДатаКрай,Приход[ДАТА],">="&ДатаСреда+1) -> 0.00 лв. | E10: =SUMIFS(Приход[СУМА],Приход[ДАТА],"<="&ДатаКрай,Приход[ДАТА],">="&ДатаСреда+1) -> 3,100.00 лв. | F10: =SUMIFS(Приход[СУМА],Приход[ДАТА],"<="&ДатаКрай,Приход[ДАТА],">="&ДатаСреда+1) -> 2,600.00 лв. | G10: =SUMIFS(Приход[СУМА],Приход[ДАТА],"<="&ДатаКрай,Приход[ДАТА],">="&ДатаСреда+1) -> 0.00 лв. | H10: =SUMIFS(Приход[СУМА],Приход[ДАТА],"<="&ДатаКрай,Приход[ДАТА],">="&ДатаСреда+1) -> 0.00 лв. | I10: =SUMIFS(Приход[СУМА],Приход[ДАТА],"<="&ДатаКрай,Приход[ДАТА],">="&ДатаСреда+1) -> 0.00 лв. | J10: =SUMIFS(Приход[СУМА],Приход[ДАТА],"<="&ДатаКрай,Приход[ДАТА],">="&ДатаСреда+1) -> 0.00 лв. | K10: =SUMIFS(Приход[СУМА],Приход[ДАТА],"<="&ДатаКрай,Приход[ДАТА],">="&ДатаСреда+1) -> 0.00 лв. | L10: =SUMIFS(Приход[СУМА],Приход[ДАТА],"<="&ДатаКрай,Приход[ДАТА],">="&ДатаСреда+1) -> 0.00 лв. | M10: =SUMIFS(Приход[СУМА],Приход[ДАТА],"<="&ДатаКрай,Приход[ДАТА],">="&ДатаСреда+1) -> 0.00 лв. | N10: =SUMIFS(Приход[СУМА],Приход[ДАТА],"<="&ДатаКрай,Приход[ДАТА],">="&ДатаСреда+1) -> 0.00 лв.
B11: Разходи 1–15 | C11: =SUMIFS(Разноски[СУМА],Разноски[ДАТА],"<="&ДатаСреда+1,Разноски[ДАТА],">="&ДатаНачало) -> 0.00 лв. | D11: =SUMIFS(Разноски[СУМА],Разноски[ДАТА],"<="&ДатаСреда+1,Разноски[ДАТА],">="&ДатаНачало) -> 0.00 лв. | E11: =SUMIFS(Разноски[СУМА],Разноски[ДАТА],"<="&ДатаСреда+1,Разноски[ДАТА],">="&ДатаНачало) -> 150.00 лв. | F11: =SUMIFS(Разноски[СУМА],Разноски[ДАТА],"<="&ДатаСреда+1,Разноски[ДАТА],">="&ДатаНачало) -> 225.00 лв. | G11: =SUMIFS(Разноски[СУМА],Разноски[ДАТА],"<="&ДатаСреда+1,Разноски[ДАТА],">="&ДатаНачало) -> 2,642.00 лв. | H11: =SUMIFS(Разноски[СУМА],Разноски[ДАТА],"<="&ДатаСреда+1,Разноски[ДАТА],">="&ДатаНачало) -> 0.00 лв. | I11: =SUMIFS(Разноски[СУМА],Разноски[ДАТА],"<="&ДатаСреда+1,Разноски[ДАТА],">="&ДатаНачало) -> 0.00 лв. | J11: =SUMIFS(Разноски[СУМА],Разноски[ДАТА],"<="&ДатаСреда+1,Разноски[ДАТА],">="&ДатаНачало) -> 0.00 лв. | K11: =SUMIFS(Разноски[СУМА],Разноски[ДАТА],"<="&ДатаСреда+1,Разноски[ДАТА],">="&ДатаНачало) -> 0.00 лв. | L11: =SUMIFS(Разноски[СУМА],Разноски[ДАТА],"<="&ДатаСреда+1,Разноски[ДАТА],">="&ДатаНачало) -> 0.00 лв. | M11: =SUMIFS(Разноски[СУМА],Разноски[ДАТА],"<="&ДатаСреда+1,Разноски[ДАТА],">="&ДатаНачало) -> 0.00 лв. | N11: =SUMIFS(Разноски[СУМА],Разноски[ДАТА],"<="&ДатаСреда+1,Разноски[ДАТА],">="&ДатаНачало) -> 0.00 лв.
B12: Разходи от 16 до края на месеца | C12: =SUMIFS(Разноски[СУМА],Разноски[ДАТА],"<="&ДатаКрай,Разноски[ДАТА],">="&ДатаСреда+1) -> 0.00 лв. | D12: =SUMIFS(Разноски[СУМА],Разноски[ДАТА],"<="&ДатаКрай,Разноски[ДАТА],">="&ДатаСреда+1) -> 1,075.00 лв. | E12: =SUMIFS(Разноски[СУМА],Разноски[ДАТА],"<="&ДатаКрай,Разноски[ДАТА],">="&ДатаСреда+1) -> 5,200.00 лв. | F12: =SUMIFS(Разноски[СУМА],Разноски[ДАТА],"<="&ДатаКрай,Разноски[ДАТА],">="&ДатаСреда+1) -> 1,450.00 лв. | G12: =SUMIFS(Разноски[СУМА],Разноски[ДАТА],"<="&ДатаКрай,Разноски[ДАТА],">="&ДатаСреда+1) -> 0.00 лв. | H12: =SUMIFS(Разноски[СУМА],Разноски[ДАТА],"<="&ДатаКрай,Разноски[ДАТА],">="&ДатаСреда+1) -> 0.00 лв. | I12: =SUMIFS(Разноски[СУМА],Разноски[ДАТА],"<="&ДатаКрай,Разноски[ДАТА],">="&ДатаСреда+1) -> 0.00 лв. | J12: =SUMIFS(Разноски[СУМА],Разноски[ДАТА],"<="&ДатаКрай,Разноски[ДАТА],">="&ДатаСреда+1) -> 0.00 лв. | K12: =SUMIFS(Разноски[СУМА],Разноски[ДАТА],"<="&ДатаКрай,Разноски[ДАТА],">="&ДатаСреда+1) -> 0.00 лв. | L12: =SUMIFS(Разноски[СУМА],Разноски[ДАТА],"<="&ДатаКрай,Разноски[ДАТА],">="&ДатаСреда+1) -> 0.00 лв. | M12: =SUMIFS(Разноски[СУМА],Разноски[ДАТА],"<="&ДатаКрай,Разноски[ДАТА],">="&ДатаСреда+1) -> 0.00 лв. | N12: =SUMIFS(Разноски[СУМА],Разноски[ДАТА],"<="&ДатаКрай,Разноски[ДАТА],">="&ДатаСреда+1) -> 0.00 лв.

Sheet Разходи и приходи
A1: Създайте списък с приходи и разходи в този работен лист. Полезни инструкции как да използвате този работен лист, можете да намерите в клетките в тази колона. Заглавието на работната книга е в клетката вдясно, а заглавието на работния лист е в клетка H1. | B1: =Semi_Monthly_Home_Budget_Title -> Полумесечен домашен бюджет | H1: ПРИХОДИ И РАЗХОДИ
A2: Етикетът за приходи е в клетката вдясно, а етикет "Разходи" в клетка F2. | B2: ПРИХОД | F2: РАЗНОСКИ
A3: Въведете подробности в таблицата "Приходи", започвайки от клетката отдясно и в таблицата "Разходи", започвайки от клетка F3. | B3: ДАТА | C3: ОПИСАНИЕ | D3: СУМА | F3: ДАТА | G3: КАТЕГОРИЯ | H3: ОПИСАНИЕ | I3: СУМА
B4: =TODAY() -> 2022-05-13 | C4: Бонус | D4: 500.00 лв. | F4: =TODAY() -> 2022-05-13 | G4: Медицински | H4: Застраховка | I4: 500.00 лв.
B5: =TODAY()-14 -> 2022-04-29 | C5: Заплата на Христо | D5: 1,300.00 лв. | F5: =TODAY()-7 -> 2022-05-06 | G5: Домакинство | H5: Ипотека | I5: 1,000.00 лв.
B6: =TODAY()-14 -> 2022-04-29 | C6: Заплата на Яне | D6: 1,300.00 лв. | F6: 2022-05-06 | G6: Домакинство | H6: Електричество | I6: 100.00 лв.
B7: =TODAY()-28 -> 2022-04-15 | C7: Заплата на Христо | D7: 1,500.00 лв. | F7: 2022-05-06 | G7: Домакинство | H7: Вода/канализация | I7: 50.00 лв.
B8: =TODAY()-28 -> 2022-04-15 | C8: Заплата на Яне | D8: 1,600.00 лв. | F8: 2022-05-06 | G8: Домакинство | H8: Боклук | I8: 25.00 лв.
B9: =TODAY()-42 -> 2022-04-01 | C9: Заплата на Христо | D9: 1,300.00 лв. | F9: 2022-05-06 | G9: Домакинство | H9: Мобилен телефон | I9: 100.00 лв.
B10: =TODAY()-42 -> 2022-04-01 | C10: Заплата на Яне | D10: 1,300.00 лв. | F10: 2022-05-06 | G10: Домакинство | H10: Мобилен телефон | I10: 30.00 лв.
B11: =TODAY()-56 -> 2022-03-18 | C11: Заплата на Христо | D11: 1,500.00 лв. | F11: 2022-05-06 | G11: Домакинство | H11: Ипотека | I11: 50.00 лв.
B12: =TODAY()-56 -> 2022-03-18 | C12: Заплата на Яне | D12: 1,600.00 лв. | F12: 2022-05-06 | G12: Домакинство | H12: Мобилен телефон | I12: 50.00 лв.
B13: =TODAY()-70 -> 2022-03-04 | C13: Заплата на Христо | D13: 1,300.00 лв. | F13: =TODAY()-7 -> 2022-05-06 | G13: Домакинство | H13: Мобилен телефон | I13: 25.00 лв.
F14: =TODAY()-8 -> 2022-05-05 | G14: Домакинство | H14: Електричество | I14: 100.00 лв.
F15: =TODAY()-9 -> 2022-05-04 | G15: Развлечения | H15: Филми | I15: 37.00 лв.
F16: =TODAY()-10 -> 2022-05-03 | G16: Храна | H16: Хранителни стоки | I16: 350.00 лв.
F17: =TODAY()-11 -> 2022-05-02 | G17: Храна | H17: Заведения | I17: 75.00 лв.
F18: =TODAY()-12 -> 2022-05-01 | G18: Деца | H18: Пари за обяд | I18: 150.00 лв.
F19: =TODAY()-13 -> 2022-04-30 | G19: Инвестиционни сметки | H19: Спестявания | I19: 250.00 лв.
F20: =TODAY()-14 -> 2022-04-29 | G20: Инвестиционни сметки | H20: Инвестиционна сметка | I20: 250.00 лв.
F21: =TODAY()-15 -> 2022-04-28 | G21: Лични | H21: Здраве/фитнес клуб | I21: 100.00 лв.
F22: =TODAY()-16 -> 2022-04-27 | G22: Домашни_любимци | H22: Храна | I22: 50.00 лв.
F23: =TODAY()-20 -> 2022-04-23 | G23: Домашни_любимци | H23: Поддържане | I23: 50.00 лв.
F24: =TODAY()-20 -> 2022-04-23 | G24: Домашни_любимци | H24: Други | I24: 50.00 лв.
F25: =TODAY()-25 -> 2022-04-18 | G25: Транспорт | H25: Плащане за кола 1 | I25: 300.00 лв.
F26: =TODAY()-25 -> 2022-04-18 | G26: Транспорт | H26: Плащане за кола 2 | I26: 350.00 лв.
F27: =TODAY()-25 -> 2022-04-18 | G27: Транспорт | H27: Застраховка на кола | I27: 50.00 лв.
F28: =TODAY()-30 -> 2022-04-13 | G28: Транспорт | H28: Гориво | I28: 50.00 лв.
F29: =TODAY()-31 -> 2022-04-12 | G29: Транспорт | H29: Гориво | I29: 25.00 лв.
F30: =TODAY()-42 -> 2022-04-01 | G30: Транспорт | H30: Плащане за кола 2 | I30: 150.00 лв.
F31: =TODAY()-45 -> 2022-03-29 | G31: Домакинство | H31: Ипотека | I31: 5,000.00 лв.
F32: =TODAY()-50 -> 2022-03-24 | G32: Домакинство | H32: Електричество | I32: 200.00 лв.
F33: =TODAY()-65 -> 2022-03-09 | G33: Домакинство | H33: Мобилен телефон | I33: 100.00 лв.
F34: =TODAY()-70 -> 2022-03-04 | G34: Домакинство | H34: Боклук | I34: 50.00 лв.
F35: =TODAY()-75 -> 2022-02-27 | G35: Домакинство | H35: Ипотека | I35: 1,000.00 лв.
F36: =TODAY()-78 -> 2022-02-24 | G36: Развлечения | H36: Филми | I36: 75.00 лв.

Sheet Отчет за бюджета
A1: Създаване на отчет за бюджета в този работен лист. Полезни инструкции как да използвате този работен лист, можете да намерите в клетките в тази колона. Заглавието на работната книга е в клетката вдясно, а заглавието на работния лист в клетка F1. | B1: =Semi_Monthly_Home_Budget_Title -> Полумесечен домашен бюджет | F1: ОТЧЕТ ЗА БЮДЖЕТА
A2: Изберете "Години", "Тримесечия", "Месеци" или "Дни" и използвайте плъзгача в клетката вдясно, за да получите обобщената таблица за разходите за избрания период. Сегментаторът по категория, който филтрира данните на обобщената таблица, е в клетка E2, а сегментатор "Описание" в клетка F2. | B2: Времевата линия за филтриране е в тази клетка. | E2: Сегментатор за филтриране на данни на обобщена таблица, базирани на "Категория", е в тази клетка. | F2: Сегментатор за филтриране на данни на обобщена таблица, базирани на "Описание", е в тази клетка.
A3: Съветът е в клетката вдясно. | B3: Натиснете Shift+F10 в обобщената таблица "Разходи" и след това изберете Обнови, за да актуализирате данните в този лист, или изберете Обнови под Раздел "Анализиране".
A4: Етикетът за разходи е в клетката вдясно. | B4: РАЗНОСКИ
A5: Обобщената таблица, показваща разходите, започва в клетката отдясно. Етикетът "Общи суми за категория" е в клетка D4. | B5: Етикети на редове | C5: Сума от СУМА | D5: ОБЩИ СУМИ ЗА КАТЕГОРИЯ
A6: Кръговата диаграма, която сравнява общата сума за всяка категория, е в клетка D6. | B6: Плащане за кола 1 | C6: 300.00 лв.
B7: Плащане за кола 2 | C7: 500.00 лв.
B8: Боклук | C8: 75.00 лв.
B9: Вода/канализация | C9: 50.00 лв.
B10: Гориво | C10: 75.00 лв.
B11: Други | C11: 50.00 лв.
B12: Електричество | C12: 400.00 лв.
B13: Заведения | C13: 75.00 лв.
B14: Застраховка | C14: 500.00 лв.
B15: Застраховка на кола | C15: 50.00 лв.
B16: Здраве/фитнес клуб | C16: 100.00 лв.
B17: Инвестиционна сметка | C17: 250.00 лв.
B18: Ипотека | C18: 7,050.00 лв.
B19: Мобилен телефон | C19: 305.00 лв.
B20: Пари за обяд | C20: 150.00 лв.
B21: Поддържане | C21: 50.00 лв.
B22: Спестявания | C22: 250.00 лв.
B23: Филми | C23: 112.00 лв.
B24: Храна | C24: 50.00 лв.
B25: Хранителни стоки | C25: 350.00 лв.
B26: Обща сума | C26: 10,742.00 лв.

Sheet Списъци с данни
A1: Въведете данни за категорията в този работен лист, за да попълните падащите списъци в таблицата "Разходи" в работния лист "Разходи и приходи". Променете имената или описанията на категориите под всяка категория, за да актуализирате списъците. Полезни инструкции как да използвате този работен лист, можете да намерите в клетките в тази колона. Заглавието на работната книга е в клетката вдясно, а заглавието на работния лист в клетка M1. | B1: =Semi_Monthly_Home_Budget_Title -> Полумесечен домашен бюджет | M1: СПИСЪЦИ С ДАННИ
A2: Съветът е в клетката вдясно. | B2: НАСТРОЙКА Данните за категорията по-долу попълват падащите списъци в таблицата "Разходи" в листа "Разходи и приходи". Променете имената на категориите или описанията под всяка категория, за да актуализирате списъците.
A3: Въведете или променете имената или описанията на категориите под всяка категория в таблицата, започвайки от клетката отдясно. | B3: Домакинство | C3: Развлечения | D3: Храна | E3: Подаръци/Дарения | F3: Деца | G3: Инвестиционни сметки | H3: Медицински | I3: Други | J3: Лични | K3: Домашни_любимци | L3: Данъци/юридически | M3: Транспорт
B4: Ипотека | C4: Филми | D4: Хранителни стоки | E4: Благотворителност 1 | F4: Дрехи | G4: IRA | H4: Лекар/клиника | I4: Други | J4: Облекло | K4: Храна | L4: Държавни | M4: Плащане за кола 1
B5: Електричество | C5: Видео/филми | D5: Заведения | E5: Благотворителност 2 | F5: Играчки/игри | G5: Спестявания | H5: Застраховка | I5: Членски внос в организации | J5: Коса/нокти | K5: Консумативи | L5: Областен | M5: Плащане за кола 2
B6: Вода/Канализация | C6: Музика | E6: Благотворителност 3 | F6: Пари за обяд | G6: Текуща разплащателна | J6: Химическо чистене | K6: Медицински | L6: Местен | M6: Застраховка на кола
B7: Боклук | C7: Театри/Театър | E7: Подарък | F7: Разноски/такси | G7: Пенсиониране | J7: Здраве/фитнес клуб | K7: Поддържане | L7: Други | M7: Лицензиране/регистрация
B8: Мобилен телефон | C8: Спортни събития | F8: Училищни пособия | G8: Инвестиционна сметка | J8: Пазаруване | K8: Други | L8: Адвокат | M8: Гориво

Sheet Обобщена таблица на категория (hidden)
B1: Полумесечен домашен бюджет | M1: ОБОБЩЕНА ТАБЛИЦА НА КАТЕГОРИЯ
B2: Тази обобщена таблица е източникът на данни за обобщената диаграма "Общи суми на категориите" в отчета за бюджет.
B3: Етикети на редове | C3: Сума от СУМА
B4: Деца | C4: 150 лв.
B5: Домашни_любимци | C5: 150 лв.
B6: Инвестиционни сметки | C6: 500 лв.
B7: Домакинство | C7: 7,880 лв.
B8: Лични | C8: 100 лв.
B9: Медицински | C9: 500 лв.
B10: Развлечения | C10: 112 лв.
B11: Транспорт | C11: 925 лв.
B12: Храна | C12: 425 лв.
B13: Обща сума | C13: 10,742 лв.
